fUSD/lending_fUSD_20250611
["ID","MTS","AMOUNT","RATE_DAILY","PERIOD"]
[365434374,1749670239690,-1369.54349383,0.00019,2]
[365434375,1749670239734,-3438.54987557,0.00019,2]
[365434376,1749670239744,-346.7516663,0.0001901,7]
[365434377,1749670239753,-202.00259924,0.00019018,2]
[365434378,1749670239763,-370.41837105,0.00019041,2]
[365434379,1749670239772,-202.00259924,0.00019076,2]
[365434380,1749670239781,-326.93245028,0.00019078,2]
[365434381,1749670239790,-326.93245012,0.00019095,2]
[365434382,1749670239800,-150.0,0.000191,2]
[365434383,1749670239809,-150.0,0.000191,2]
[365434384,1749670239819,-151.23,0.000191,2]
[365434385,1749670239828,-1000.0,0.000191,2]
[365434386,1749670239838,-326.93245012,0.00019113,2]
[365434387,1749670239847,-326.93245012,0.0001913,2]
[365434388,1749670239856,-202.00259924,0.00019135,2]
[365434389,1749670239866,-326.93245012,0.00019147,2]
[365434390,1749670239875,-326.93245012,0.00019164,2]
[365434391,1749670239884,-155.0,0.00019177,2]
[365434392,1749670239893,-490.0,0.00019178,2]
[365434393,1749670239902,-480.0,0.00019178,2]
[365434394,1749670239911,-480.0,0.00019178,2]
[365434395,1749670239920,-307.10318567,0.00019178,2]
[365434396,1749670239931,-172.89681433,0.00019178,2]
[365434397,1749670239939,-226.59042316,0.00019178,2]
[365434398,1749670239949,-450.36029804,0.00019178,2]
[365434399,1749670239958,-490.0,0.00019178,2]
[365434400,1749670239967,-490.0,0.00019178,2]
[365434401,1749670239976,-490.0,0.00019178,2]
[365434402,1749670239985,-480.0,0.00019178,2]
[365434403,1749670239994,-490.0,0.00019178,2]
[365434404,1749670240003,-490.0,0.00019178,2]
[365434405,1749670240012,-490.0,0.00019178,2]
[365434406,1749670240022,-490.0,0.00019178,2]
[365434407,1749670240031,-490.0,0.00019178,2]
[365434408,1749670240039,-490.0,0.00019178,2]
[365434409,1749670240048,-603.66796339,0.00019178,2]
[365434410,1749670240057,-490.0,0.00019178,2]
[365434411,1749670240066,-490.0,0.00019178,2]
[365434412,1749670240075,-490.0,0.00019178,2]
[365434413,1749670240084,-490.0,0.00019178,2]
[365434414,1749670240092,-490.0,0.00019178,2]
[365434415,1749670240101,-490.0,0.00019178,2]
[365434416,1749670240111,-490.0,0.00019178,2]
[365434417,1749670240120,-490.0,0.00019178,2]
[365434418,1749670240129,-490.0,0.00019178,2]
[365434419,1749670240139,-490.0,0.00019178,2]
[365434420,1749670240147,-490.0,0.00019178,2]
[365434421,1749670240156,-490.0,0.00019178,2]
[365434422,1749670240165,-480.0,0.00019178,2]
[365434424,1749670240174,-490.0,0.00019178,2]
[365434426,1749670240183,-490.0,0.00019178,2]
[365434428,1749670240192,-490.0,0.00019178,2]
[365434430,1749670240203,-490.0,0.00019178,2]
[365434431,1749670240212,-490.0,0.00019178,2]
[365434432,1749670240221,-490.0,0.00019178,2]
[365434433,1749670240230,-490.0,0.00019178,2]
[365434434,1749670240239,-490.0,0.00019178,2]
[365434435,1749670240248,-242.37,0.00019178,2]
[365434436,1749670240257,-551.53,0.00019178,2]
[365434437,1749670240266,-490.0,0.00019178,2]
[365434438,1749670240275,-490.0,0.00019178,2]
[365434439,1749670240284,-490.0,0.00019178,2]
[365434440,1749670240293,-490.0,0.00019178,2]
[365434441,1749670240302,-490.0,0.00019178,2]
[365434442,1749670240311,-576.26,0.00019178,2]
[365434443,1749670240321,-490.0,0.00019178,2]
[365434444,1749670240330,-470.0,0.00019178,2]
[365434445,1749670240339,-617.67,0.00019178,2]
[365434446,1749670240347,-490.0,0.00019178,2]
[365434447,1749670240356,-490.0,0.00019178,2]
[365434448,1749670240366,-490.0,0.00019178,2]
[365434449,1749670240376,-490.0,0.00019178,2]
[365434450,1749670240385,-490.0,0.00019178,2]
[365434451,1749670240395,-490.0,0.00019178,2]
[365434452,1749670240405,-490.0,0.00019178,2]
[365434453,1749670240414,-490.0,0.00019178,2]
[365434454,1749670240423,-490.0,0.00019178,2]
[365434455,1749670240433,-225.233648,0.00019178,2]
[365434456,1749670240442,-351.6604106,0.00019178,2]
[365434457,1749670240452,-490.0,0.00019178,2]
[365434458,1749670240461,-514.13,0.00019178,2]
[365434459,1749670240471,-490.0,0.00019178,2]
[365434460,1749670240481,-490.0,0.00019178,2]
[365434461,1749670240491,-533.87,0.00019178,2]
[365434462,1749670240500,-490.0,0.00019178,2]
[365434463,1749670240510,-132.29168408,0.00019178,2]
[365434464,1749670240529,-357.70831592,0.00019178,2]
[365434465,1749670240539,-56.94477536,0.00019178,2]
[365434466,1749670240550,-433.05522464,0.00019178,2]
[365434467,1749670240561,-490.0,0.00019178,2]
[365434468,1749670240570,-110.42577077,0.00019178,2]
[365434469,1749670240582,-379.57422923,0.00019178,2]
[365434470,1749670240592,-389.93811623,0.00019178,2]
[365434471,1749670240603,-100.06188377,0.00019178,2]
[365434472,1749670240612,-490.0,0.00019178,2]
[365434473,1749670240622,-235.13946211,0.00019178,2]
[365434474,1749670240631,-489.66624717,0.00019178,2]
[365434475,1749670240640,-447.92499907,0.00019178,2]
[365434476,1749670240843,-42.07500093,0.00019178,2]
[365434477,1749670240853,-490.0,0.00019178,2]
[365434478,1749670240862,-490.0,0.00019178,2]
[365434479,1749670240871,-490.0,0.00019178,2]
[365434480,1749670240881,-588.23,0.00019178,2]
[365434481,1749670240890,-490.0,0.00019178,2]
[365434482,1749670240900,-490.0,0.00019178,2]
[365434483,1749670240909,-490.0,0.00019178,2]
[365434484,1749670240919,-490.0,0.00019178,2]
[365434485,1749670240928,-490.0,0.00019178,2]
[365434486,1749670240937,-490.0,0.00019178,2]
[365434487,1749670240946,-490.0,0.00019178,2]
[365434488,1749670240957,-490.0,0.00019178,2]
[365434489,1749670240966,-204.96,0.00019178,2]
[365434490,1749670240975,-490.0,0.00019178,2]
[365434491,1749670240984,-490.0,0.00019178,2]
[365434492,1749670240994,-490.0,0.00019178,2]
[365434493,1749670241003,-490.0,0.00019178,2]
[365434494,1749670241012,-490.0,0.00019178,2]
[365434495,1749670241022,-540.83,0.00019178,2]
[365434496,1749670241032,-490.0,0.00019178,2]
[365434497,1749670241041,-629.88,0.00019178,2]
[365434498,1749670241049,-490.0,0.00019178,2]
[365434499,1749670241059,-490.0,0.00019178,2]
[365434500,1749670241068,-546.58,0.00019178,2]
[365434501,1749670241077,-490.0,0.00019178,2]
[365434502,1749670241086,-490.0,0.00019178,2]
[365434503,1749670241095,-490.0,0.00019178,2]
[365434504,1749670241104,-490.0,0.00019178,2]
[365434505,1749670241113,-490.0,0.00019178,2]
[365434506,1749670241123,-791.13,0.00019178,2]
[365434507,1749670241132,-490.0,0.00019178,2]
[365434508,1749670241141,-490.0,0.00019178,2]
[365434509,1749670241150,-490.0,0.00019178,2]
[365434510,1749670241158,-490.0,0.00019178,2]
[365434511,1749670241167,-490.0,0.00019178,2]
[365434512,1749670241176,-490.0,0.00019178,2]
[365434513,1749670241186,-490.0,0.00019178,2]
[365434514,1749670241195,-490.0,0.00019178,2]
[365434515,1749670241208,-490.0,0.00019178,2]
[365434516,1749670241217,-490.0,0.00019178,2]
[365434517,1749670241226,-490.0,0.00019178,2]
[365434518,1749670241235,-816.69,0.00019178,2]
[365434519,1749670241244,-490.0,0.00019178,2]
[365434520,1749670241253,-2571.7,0.00019178,2]
[365434521,1749670241262,-490.0,0.00019178,2]
[365434522,1749670241271,-490.0,0.00019178,2]
[365434523,1749670241280,-490.0,0.00019178,2]
[365434524,1749670241289,-496.65,0.00019178,2]
[365434525,1749670241299,-1366.32,0.00019178,2]
[365434526,1749670241308,-612.16348503,0.00019178,2]
[365434527,1749670241318,-480.0,0.00019178,2]
[365434528,1749670241327,-540.86,0.00019178,2]
[365434529,1749670241337,-527.18547574,0.00019178,2]
[365434530,1749670241346,-490.0,0.00019178,2]
[365434531,1749670241355,-490.0,0.00019178,2]
[365434532,1749670241364,-480.0,0.00019178,2]
[365434533,1749670241374,-490.0,0.00019178,2]
[365434534,1749670241383,-680.46,0.00019178,2]
[365434535,1749670241392,-490.0,0.00019178,2]
[365434536,1749670241401,-480.0,0.00019178,2]
[365434537,1749670241411,-490.0,0.00019178,2]
[365434538,1749670241420,-490.0,0.00019178,2]
[365434539,1749670241429,-490.0,0.00019178,2]
[365434540,1749670241438,-200.61699993,0.00019178,2]
[365434541,1749670241451,-279.38300007,0.00019178,2]
[365434542,1749670241460,-490.0,0.00019178,2]
[365434543,1749670241469,-422.06488507,0.00019178,2]
[365434544,1749670241479,-490.0,0.00019178,2]
[365434545,1749670241487,-480.0,0.00019178,2]
[365434546,1749670241497,-490.0,0.00019178,2]
[365434547,1749670241506,-490.0,0.00019178,2]
[365434548,1749670241515,-490.0,0.00019178,2]
[365434549,1749670241529,-6201.58,0.00019178,2]
[365434550,1749670241538,-2248.13,0.00019178,2]
[365434551,1749670241547,-422.67631576,0.00019178,2]
[365434552,1749670241557,-220.27142204,0.00019178,2]
[365434553,1749670241566,-480.0,0.00019178,2]
[365434555,1749670241575,-490.0,0.00019178,2]
[365434556,1749670241585,-480.0,0.00019178,2]
[365434558,1749670241595,-480.0,0.00019178,2]
[365434559,1749670241605,-490.0,0.00019178,2]
[365434560,1749670241614,-490.0,0.00019178,2]
[365434561,1749670241625,-490.0,0.00019178,2]
[365434562,1749670241634,-490.0,0.00019178,2]
[365434563,1749670241644,-490.0,0.00019178,2]
[365434564,1749670241654,-490.0,0.00019178,2]
[365434565,1749670241663,-480.0,0.00019178,2]
[365434566,1749670241672,-490.0,0.00019178,2]
[365434567,1749670241681,-480.0,0.00019178,2]
[365434568,1749670241691,-892.25,0.00019178,2]
[365434569,1749670241701,-506.38,0.00019178,2]
[365434570,1749670241711,-490.45,0.00019178,2]
[365434571,1749670241720,-524.82,0.00019178,2]
[365434572,1749670241732,-480.0,0.00019178,2]
[365434573,1749670241741,-490.0,0.00019178,2]
[365434574,1749670241751,-152.778297,0.00019178,2]
[365434575,1749670241760,-152.778297,0.00019178,2]
[365434576,1749670241770,-152.778297,0.00019178,2]
[365434577,1749670241781,-152.778297,0.00019178,2]
[365434578,1749670241790,-382.09504884,0.00019178,2]
[365434579,1749670241800,-152.778297,0.00019178,2]
[365434580,1749670241809,-152.778297,0.00019178,2]
[365434581,1749670241819,-152.778297,0.00019178,2]
[365434582,1749670241828,-152.778297,0.00019178,2]
[365434583,1749670241837,-490.0,0.00019178,2]
[365434584,1749670241847,-490.0,0.00019178,2]
[365434585,1749670241857,-554.39,0.00019178,2]
[365434586,1749670241866,-490.0,0.00019178,2]
[365434587,1749670241876,-490.0,0.00019178,2]
[365434588,1749670241885,-408.0018353,0.00019178,2]
[365434589,1749670241894,-490.0,0.00019178,2]
[365434590,1749670241903,-1606.22,0.00019178,2]
[365434591,1749670241912,-490.0,0.00019178,2]
[365434592,1749670241921,-490.0,0.00019178,2]
[365434593,1749670241931,-490.0,0.00019178,2]
[365434594,1749670241940,-490.0,0.00019178,2]
[365434595,1749670241951,-581.12,0.00019178,2]
[365434596,1749670241961,-658.23,0.00019178,2]
[365434597,1749670241971,-858.62,0.00019178,2]
[365434598,1749670241980,-490.0,0.00019178,2]
[365434599,1749670241990,-490.0,0.00019178,2]
[365434600,1749670241999,-490.0,0.00019178,2]
[365434601,1749670242009,-490.0,0.00019178,2]
[365434602,1749670242018,-490.0,0.00019178,2]
[365434603,1749670242028,-1524.84,0.00019178,2]
[365434604,1749670242037,-490.0,0.00019178,2]
[365434605,1749670242046,-935.3,0.00019178,2]
[365434606,1749670242055,-480.0,0.00019178,2]
[365434607,1749670242064,-797.46,0.00019178,2]
[365434608,1749670242074,-340.0,0.00019178,2]
[365434609,1749670242083,-490.0,0.00019178,2]
[365434610,1749670242093,-422.28056995,0.00019178,2]
[365434611,1749670242103,-490.0,0.00019178,2]
[365434612,1749670242112,-203.39830104,0.00019178,2]
[365434613,1749670242122,-490.0,0.00019178,2]
[365434614,1749670242132,-480.0,0.00019178,2]
[365434616,1749670242141,-490.0,0.00019178,2]
[365434617,1749670242150,-490.0,0.00019178,2]
[365434618,1749670242159,-490.0,0.00019178,2]
[365434619,1749670242169,-490.0,0.00019178,2]
[365434620,1749670242178,-581.71412546,0.00019178,2]
[365434621,1749670242187,-490.0,0.00019178,2]
[365434622,1749670242196,-480.0,0.00019178,2]
[365434623,1749670242207,-423.3807897,0.00019178,2]
[365434624,1749670242216,-490.0,0.00019178,2]
[365434625,1749670242226,-480.0,0.00019178,2]
[365434626,1749670242235,-490.0,0.00019178,2]
[365434627,1749670242244,-447.37366828,0.00019178,2]
[365434628,1749670242253,-480.0,0.00019178,2]
[365434629,1749670242262,-480.0,0.00019178,2]
[365434630,1749670242272,-490.0,0.00019178,2]
[365434631,1749670242281,-596.42,0.00019178,2]
[365434632,1749670242290,-743.22,0.00019178,2]
[365434633,1749670242299,-469.38480769,0.00019178,2]
[365434634,1749670242308,-480.0,0.00019178,2]
[365434635,1749670242317,-490.0,0.00019178,2]
[365434636,1749670242327,-480.0,0.00019178,2]
[365434637,1749670242336,-490.0,0.00019178,2]
[365434638,1749670242345,-3749.8,0.00019178,2]
[365434639,1749670242354,-490.0,0.00019178,2]
[365434642,1749670242363,-490.0,0.00019178,2]
[365434643,1749670242372,-429.88405123,0.00019178,2]
[365434644,1749670242382,-490.0,0.00019178,2]
[365434645,1749670242392,-490.0,0.00019178,2]
[365434646,1749670242401,-642.62,0.00019178,2]
[365434647,1749670242410,-480.0,0.00019178,2]
[365434648,1749670242419,-490.0,0.00019178,2]
[365434649,1749670242429,-655.06,0.00019178,2]
[365434650,1749670242439,-480.0,0.00019178,2]
[365434651,1749670242448,-490.0,0.00019178,2]
[365434652,1749670242462,-490.0,0.00019178,2]
[365434653,1749670242472,-2179.93,0.00019178,2]
[365434654,1749670242483,-487.28832788,0.00019178,2]
[365434655,1749670242493,-515.35,0.00019178,2]
[365434656,1749670242502,-490.0,0.00019178,2]
[365434657,1749670242511,-490.0,0.00019178,2]
[365434658,1749670242523,-490.0,0.00019178,2]
[365434660,1749670242533,-480.0,0.00019178,2]
[365434661,1749670242542,-480.0,0.00019178,2]
[365434663,1749670242552,-907.49,0.00019178,2]
[365434665,1749670242562,-490.0,0.00019178,2]
[365434667,1749670242574,-807.88870727,0.00019178,2]
[365434670,1749670242589,-192.11129273,0.00019178,2]
[365434672,1749670242598,-396.03675898,0.00019178,2]
[365434674,1749670242630,-23.96324102,0.00019178,2]
[365434675,1749670242640,-551.66,0.00019178,2]
[365434676,1749670242650,-490.0,0.00019178,2]
[365434677,1749670242659,-490.0,0.00019178,2]
[365434678,1749670242669,-382.52,0.00019178,2]
[365434679,1749670242679,-1338.20884393,0.00019178,2]
[365434680,1749670242691,-34.40115607,0.00019178,2]
[365434681,1749670242702,-526.69715913,0.00019178,2]
[365434682,1749670242712,-436.1643665,0.00019178,2]
[365434685,1749670242956,-53.8356335,0.00019178,2]
[365434686,1749670242966,-490.0,0.00019178,2]
[365434688,1749670242975,-490.0,0.00019178,2]
[365434689,1749670242985,-490.0,0.00019178,2]
[365434690,1749670242994,-490.0,0.00019178,2]
[365434691,1749670243003,-857.75,0.00019178,2]
[365434692,1749670243012,-480.0,0.00019178,2]
[365434693,1749670243021,-752.37,0.00019178,2]
[365434694,1749670243032,-480.0,0.00019178,2]
[365434695,1749670243041,-1681.79,0.00019178,2]
[365434696,1749670243051,-196.61837122,0.00019178,2]
[365434697,1749670243073,-293.38162878,0.00019178,2]
[365434698,1749670243083,-853.45,0.00019178,2]
[365434699,1749670243091,-137.41841122,0.00019178,2]
[365434701,1749670243103,-352.58158878,0.00019178,2]
[365434702,1749670243111,-490.0,0.00019178,2]
[365434703,1749670243123,-480.0,0.00019178,2]
[365434704,1749670243136,-490.0,0.00019178,2]
[365434705,1749670243145,-490.0,0.00019178,2]
[365434706,1749670243155,-480.0,0.00019178,2]
[365434707,1749670243165,-490.0,0.00019178,2]
[365434708,1749670243221,-2290.07,0.00019178,2]
[365434709,1749670243230,-490.0,0.00019178,2]
[365434710,1749670243238,-480.0,0.00019178,2]
[365434711,1749670243247,-490.0,0.00019178,2]
[365434712,1749670243256,-490.0,0.00019178,2]
[365434713,1749670243265,-480.0,0.00019178,2]
[365434714,1749670243274,-509.03,0.00019178,2]
[365434715,1749670243283,-609.54,0.00019178,2]
[365434716,1749670243292,-3230.21,0.00019178,2]
[365434717,1749670243301,-1711.89,0.00019178,2]
[365434718,1749670243310,-507.17,0.00019178,2]
[365434719,1749670243319,-490.0,0.00019178,2]
[365434720,1749670243328,-41.09582559,0.00019178,2]
[365434721,1749670243343,-448.90417441,0.00019178,2]
[365434722,1749670243352,-2598.09982559,0.00019178,2]
[365434723,1749670243363,-2365.96017441,0.00019178,2]
[365434724,1749670243372,-502.68,0.00019178,2]
[365434725,1749670243381,-490.0,0.00019178,2]
[365434726,1749670243390,-480.0,0.00019178,2]
[365434727,1749670243399,-480.0,0.00019178,2]
[365434728,1749670243408,-480.0,0.00019178,2]
[365434729,1749670243417,-490.0,0.00019178,2]
[365434730,1749670243426,-490.0,0.00019178,2]
[365434731,1749670243435,-490.0,0.00019178,2]
[365434732,1749670243444,-490.0,0.00019178,2]
[365434733,1749670243454,-490.0,0.00019178,2]
[365434734,1749670243463,-599.97,0.00019178,2]
[365434735,1749670243472,-480.0,0.00019178,2]
[365434736,1749670243482,-411.25969934,0.00019178,2]
[365434737,1749670243491,-490.0,0.00019178,2]
[365434738,1749670243500,-490.0,0.00019178,2]
[365434739,1749670243509,-490.0,0.00019178,2]
[365434740,1749670243520,-480.0,0.00019178,2]
[365434741,1749670243531,-561.14,0.00019178,2]
[365434742,1749670243545,-661.3,0.00019178,2]
[365434743,1749670243556,-480.0,0.00019178,2]
[365434744,1749670243567,-490.0,0.00019178,2]
[365434745,1749670243577,-490.0,0.00019178,2]
[365434746,1749670243586,-490.0,0.00019178,2]
[365434747,1749670243596,-507.62,0.00019178,2]
[365434748,1749670243607,-324.00744534,0.00019178,2]
[365434749,1749670243617,-1442.72,0.00019178,2]
[365434750,1749670243627,-423.69316761,0.00019178,2]
[365434751,1749670243637,-497.43,0.00019178,2]
[365434752,1749670243647,-490.0,0.00019178,2]
[365434753,1749670243656,-490.0,0.00019178,2]
[365434754,1749670243666,-490.0,0.00019178,2]
[365434755,1749670243675,-490.0,0.00019178,2]
[365434756,1749670243685,-490.0,0.00019178,2]
[365434757,1749670243695,-671.99,0.00019178,2]
[365434758,1749670243706,-490.0,0.00019178,2]
[365434759,1749670243715,-253.84957142,0.00019178,2]
[365434760,1749670243727,-236.15042858,0.00019178,2]
[365434761,1749670243737,-490.0,0.00019178,2]
[365434762,1749670243746,-480.0,0.00019178,2]
[365434763,1749670243755,-480.0,0.00019178,2]
[365434764,1749670243765,-480.0,0.00019178,2]
[365434765,1749670243774,-717.84,0.00019178,2]
[365434766,1749670243784,-490.0,0.00019178,2]
[365434767,1749670243793,-480.0,0.00019178,2]
[365434768,1749670243803,-480.0,0.00019178,2]
[365434769,1749670243812,-545.65,0.00019178,2]
[365434770,1749670243821,-705.29,0.00019178,2]
[365434771,1749670243831,-637.26,0.00019178,2]
[365434772,1749670243840,-548.57,0.00019178,2]
[365434773,1749670243850,-480.0,0.00019178,2]
[365434774,1749670243859,-424.89999743,0.00019178,2]
[365434775,1749670243869,-441.057573,0.00019178,2]
[365434776,1749670243878,-158.426653,0.00019178,2]
[365434778,1749670243887,-490.0,0.00019178,2]
[365434779,1749670243897,-490.0,0.00019178,2]
[365434780,1749670243906,-490.0,0.00019178,2]
[365434781,1749670243915,-490.0,0.00019178,2]
[365434782,1749670243925,-480.0,0.00019178,2]
[365434783,1749670243934,-490.0,0.00019178,2]
[365434784,1749670243943,-490.0,0.00019178,2]
[365434785,1749670243954,-480.0,0.00019178,2]
[365434786,1749670243964,-480.0,0.00019178,2]
[365434787,1749670243973,-2091.03,0.00019178,2]
[365434788,1749670243982,-490.0,0.00019178,2]
[365434789,1749670243991,-490.0,0.00019178,2]
[365434790,1749670244000,-490.0,0.00019178,2]
[365434791,1749670244010,-490.0,0.00019178,2]
[365434792,1749670244019,-490.0,0.00019178,2]
[365434793,1749670244028,-490.0,0.00019178,2]
[365434794,1749670244037,-490.0,0.00019178,2]
[365434795,1749670244046,-490.0,0.00019178,2]
[365434796,1749670244055,-5588.91,0.00019178,2]
[365434797,1749670244064,-480.0,0.00019178,2]
[365434798,1749670244073,-490.0,0.00019178,2]
[365434799,1749670244082,-490.0,0.00019178,2]
[365434800,1749670244091,-480.0,0.00019178,2]
[365434801,1749670244100,-490.0,0.00019178,2]
[365434802,1749670244109,-675.84,0.00019178,2]
[365434803,1749670244119,-490.0,0.00019178,2]
[365434804,1749670244128,-490.0,0.00019178,2]
[365434805,1749670244138,-326.93245012,0.00019182,2]
[365434806,1749670244148,-202.00259924,0.00019194,2]
[365434807,1749670244158,-326.93245012,0.00019199,2]
[365434808,1749670244167,-3050.18163458,0.000192,2]
[365434809,1749670244176,-1128.0,0.000192,2]
[365434810,1749670244185,-370.37,0.00019206,2]
[365434811,1749670244194,-326.93245012,0.00019216,2]
[365434812,1749670244206,-326.93245012,0.00019233,2]
[365434813,1749670244216,-401.95835164,0.00019242,2]
[365434814,1749670244225,-157.24630606,0.00019242,2]
[365434815,1749670244234,-326.93245012,0.00019251,2]
[365434816,1749670244243,-202.00259924,0.00019253,2]
[365434817,1749670244253,-800.06,0.0001926,2]
[365434818,1749670244262,-326.93245012,0.00019268,2]
[365434819,1749670244270,-326.93245012,0.00019285,2]
[365434820,1749670244279,-1400.0,0.000193,7]
[365434821,1749670244288,-326.93245012,0.00019302,2]
[365434822,1749670244297,-300.0,0.00019311,2]
[365434823,1749670244305,-202.00259924,0.00019312,2]
[365434824,1749670244315,-401.95835156,0.00019315,2]
[365434825,1749670244323,-326.93245012,0.0001932,2]
[365434826,1749670244332,-350.0,0.00019323,2]
[365434827,1749670244341,-833.29909032,0.00019324,2]
[365434828,1749670244350,-150.48,0.00019331,2]
[365434829,1749670244359,-150.48,0.00019331,2]
[365434830,1749670244367,-150.48,0.00019331,2]
[365434831,1749670244376,-150.48,0.00019331,2]
[365434832,1749670244385,-150.48,0.00019331,2]
[365434833,1749670244394,-150.48,0.00019331,2]
[365434834,1749670244403,-150.48,0.00019331,2]
[365434835,1749670244411,-150.48,0.00019331,2]
[365434836,1749670244420,-150.48,0.00019331,2]
[365434837,1749670244430,-150.48,0.00019331,2]
[365434838,1749670244439,-150.48,0.00019331,2]
[365434839,1749670244448,-155.86872249,0.00019331,2]
[365434840,1749670244459,-326.93245012,0.00019337,2]
[365434841,1749670244467,-500.0,0.00019341,2]
[365434842,1749670244476,-11122.99217187,0.00019341,3]
[365434843,1749670244485,-304715.38010186,0.00019341,3]
[365434844,1749670244654,-4836.0,0.00019341,3]
[365434845,1749670244665,-13748.7953091,0.00019341,3]
[365434847,1749670245763,-490.0,0.00019178,2]
[365434848,1749670245772,-1521.93,0.00019178,2]
[365434849,1749670245782,-517.45,0.00019178,2]
[365434850,1749670245792,-490.0,0.00019178,2]
[365434851,1749670245801,-3613.98594784,0.00019341,3]
[365434852,1749670245812,-10930.8506914,0.00019341,3]
[365434863,1749670246175,-20654.60347046,0.00019341,3]
[365434864,1749670246448,-191788.81433588,0.00019341,3]
[365434865,1749670246461,-1917.5549425,0.00019341,3]
[365434866,1749670285256,169.85,0.00014727,2]
[365434867,1749670366845,404.76,0.00013699,2]
[365434870,1749670379798,1250.82,0.0001646,2]
[365434871,1749670618545,-3041.56437724,0.0002,14]
[365434872,1749670618567,-36475.30338408,0.0002,14]
[365434873,1749670691810,1092.0,0.000155,5]
[365434874,1749670762906,-540.13869883,0.0002,10]
[365434879,1749671235129,-204.0,0.00017012,2]
[365434880,1749671235151,-204.0,0.00017012,2]
[365434881,1749671235171,-205.05606196,0.000178,2]
[365434882,1749671235192,-766.725883,0.00017872,2]
[365434883,1749671246085,-1600.80956122,0.00017872,2]
[365434884,1749671248140,-3546.61455578,0.00017872,2]
[365434885,1749671248171,-200.36371941,0.000179,2]
[365434886,1749671248193,-532.56,0.00017935,2]
[365434887,1749671248215,-290.36,0.00017946,2]
[365434888,1749671248236,-300.0,0.00017973,2]
[365434889,1749671248257,-300.0,0.00017973,2]
[365434890,1749671248281,-2751.0,0.00017974,2]
[365434891,1749671248303,-150.0,0.00017984,7]
[365434892,1749671248331,-200.36371938,0.00017987,2]
[365434893,1749671248358,-200.36371938,0.00018074,2]
[365434894,1749671248381,-183.60384018,0.0001808,2]
[365434898,1749671386579,1306.11,0.0001597,2]
[365434899,1749671391618,404.58,0.00013699,2]
[365434910,1749671431833,-204.0,0.00017173,2]
[365434911,1749671431844,-583.0,0.00017846,2]
[365434912,1749671431890,-718.23489681,0.00017846,2]
[365434913,1749671431985,-326.15,0.00017846,2]
[365434932,1749671437640,-2432.52469884,0.00017846,2]
[365434933,1749671437696,-480.0,0.00017846,2]
[365434934,1749671437748,-807.20040435,0.00017846,2]
[365434935,1749671437759,-688.75938327,0.00017864,2]
[365434936,1749671437771,-311.24061673,0.00017864,2]
[365434937,1749671437782,-91.92792454,0.00017891,2]
[365434938,1749671437906,-208.07207546,0.00017891,2]
[365434939,1749671437917,-5941.63,0.00017892,2]
[365434940,1749671437928,-119.91615982,0.0001808,2]
[365434941,1749671437941,-301.09,0.0001808,2]
[365434942,1749671437952,-304.99,0.0001808,2]
[365434943,1749671438390,-303.52,0.0001808,2]